Cogmind - Beta 10.1 @@@ ROGUE MODE // 2020.10.23 @ 20:33:31 Player: ELF Result: Destroyed by G-34 Mercenary with Small Laser Performance ------------- Evolutions (0) 0 Regions Visited (1) 200 Robots Destroyed (23) 115 Value Destroyed (531) 531 Prototype IDs (4) 80 Alien Tech Used (0) 0 Bonus (0) 0 TOTAL SCORE: 926 Bonus ------- None Cogmind --------- Core Integrity 0/250 Matter 290/300 Energy 100/100 System Corruption 2% Temperature Cool (6) Movement Treading (160) Location -10/Materials Parts ------- > --- POWER (1) -------- (None) > --- PROPULSION (2) --- Light Treads Light Treads > --- UTILITY (2) ------ High-capacity Storage Unit > --- WEAPON (2) ------- Heavy Hammer Heavy Hammer > --- INVENTORY (12) --- Light Treads Large Storage Unit Large Storage Unit Medium Matter Pod (100) Grenade Launcher Heavy Hammer Heavy Hammer Peak State ------------ > --- POWER ------------ Light Nuclear Core > --- PROPULSION ------- Light Treads Light Treads > --- UTILITY ---------- Improved Targeting Computer Improved Targeting Computer > --- WEAPON ----------- Small Laser Light Assault Rifle > --- INVENTORY -------- Ion Engine Improved Targeting Computer Improved Targeting Computer Light Assault Rifle [Rating: 11] Favorites ----------- Power Light Nuclear Core Engine Light Ion Engine Power Core Light Nuclear Core Propulsion Light Treads Treads Light Treads Utility Improved Targeting Computer Storage Large Storage Unit Processor Improved Targeting Computer Protection Light Armor Plating Weapon Hammer Energy Gun Small Laser Energy Cannon Beam Cannon Ballistic Gun Light Assault Rifle Launcher Grenade Launcher Impact Weapon Hammer Build | -11 -10 ------- Run | Scr Mat Slots Evolved . | . . Power . | . . Propulsion . | . . Utility . | . . Weapon . | . . Parts Attached 25 | 7 18 Power 3 | 1 2 Engine 2 | 1 1 Core 1 | . 1 Reactor . | . . Propulsion 4 | 2 2 Treads 4 | 2 2 Leg . | . . Wheel . | . . Hover . | . . Flight . | . . Utility 8 | 2 6 Device . | . . Storage 4 | 2 2 Processor 3 | . 3 Hackware . | . . Protection 1 | . 1 Artifact . | . . Weapon 10 | 2 8 Energy Gun 1 | 1 . Energy Cannon 1 | . 1 Ballistic Gun 3 | 1 2 Ballistic Cannon . | . . Launcher 1 | . 1 Special Weapon . | . . Impact Weapon 4 | . 4 Slashing Weapon . | . . Piercing Weapon . | . . Special Melee Weapon . | . . Unidentified Prototypes . | . . Parts Lost 7 | . 7 Power 2 | . 2 Propulsion 1 | . 1 Utility 1 | . 1 Weapon 3 | . 3 Highest Loss Streak 3 | . 3 Average Slot Usage (%) 91 | . 91 Engine 4 | . 4 Core 8 | . 8 Treads 22 | . 22 Storage 8 | . 8 Processor 16 | . 16 Protection 2 | . 2 Energy Gun 3 | . 3 Ballistic Gun 6 | . 6 Impact Weapon 14 | . 14 Naked Turns . | . . Heaviest Build 46 | 13 46 Greatest Support 40 | 40 40 Greatest Overweight (x) 1 | . 1 Average Overweight (x) . | . . Largest Inventory Capacity 12 | 8 12 Average Capacity 7 | 5 7 Most Carried 9 | 2 9 Average Carried 4 | 1 4 Final Capacity 12 | 8 12 Final Carried 7 | 2 7 Class Distribution -------------------- 100% | Mutant Dominant Class ---------------- Mutant | -10/Materials Resources | -11 -10 ----------- Run | Scr Mat Matter Collected 569 | 272 297 Remotely . | . . Salvage Created 885 | 87 798 Parts 35 | 1 34 Haulers Intercepted 1 | . 1 Recyclers Shooed 2 | . 2 Parts Field Recycled . | . . Retrieved Matter . | . . Parts Self-Destructed . | . . Prevented . | . . Kills | -11 -10 ------- Run | Scr Mat Combat Hostiles Destroyed 15 | . 15 Melee 4 | . 4 Guns 8 | . 8 Classes Destroyed 7 | 1 6 Worker 2 | . 2 Hauler 1 | . 1 Recycler 3 | 1 2 Operator 1 | . 1 Watcher 1 | . 1 Swarmer 3 | . 3 Grunt 12 | . 12 Best Kill Streak 4 | 1 4 Combat Bots Only 3 | . 3 Max Kills in Single Turn 1 | 1 1 Gunslinging . | . . Exploded . | . . Melee 1 | . 1 Uniques/NPCs Destroyed . | . . Combat | -11 -10 -------- Run | Scr Mat Damage Taken 1188 | . 1188 Core 253 | . 253 Absorbed by Shields . | . . Core Remaining (%) 100 | 100 . Volleys Fired 67 | 2 65 Largest 2 | 2 2 Hottest 60 | 60 60 Shots Fired 88 | 4 84 Gun 88 | 4 84 Cannon . | . . Launcher . | . . Special . | . . Kinetic 70 | 2 68 Thermal 18 | 2 16 Explosive . | . . Electromagnetic . | . . Robot Hit Streak 31 | 3 31 Robot Miss Streak 3 | . 3 Penetration Max . | . . Secondary Targets . | . . Shots Hit Robots 110 | 3 107 Core Hits 34 | 2 32 Critical Hits . | . . Critical Kills . | . . Critical Parts Destroyed . | . . Melee Attacks 56 | . 56 Impact 56 | . 56 Slashing . | . . Piercing . | . . Sneak Attacks 6 | . 6 Combat Hostiles . | . . Follow-up Attacks 4 | . 4 Damage Inflicted 1699 | 29 1670 Guns 592 | 29 563 Cannons . | . . Explosions . | . . Melee 1102 | . 1102 Ramming 5 | . 5 Kinetic 387 | 7 380 Thermal 205 | 22 183 Explosive . | . . Electromagnetic . | . . Impact 1102 | . 1102 Slashing . | . . Piercing . | . . Highest Corruption 2 | . 2 Average Corruption 1 | . 1 Corruption Purged . | . . Effects 4 | . 4 Message Errors 3 | . 3 Heat Flow Errors 1 | . 1 Overload Shots . | . . Overflow Damage 147 | . 147 Projectiles . | . . Explosions . | . . Melee 147 | . 147 Knockbacks 6 | . 6 Impact 6 | . 6 Kinetic . | . . Secondary . | . . Self-Inflicted Damage . | . . Shots . | . . Rammed 3 | . 3 Targets Rammed 3 | . 3 Kicked . | . . Crushed . | . . Highest Temperature 213 | 20 213 Average Temperature 75 | 15 76 Received Heat Transfer 600 | . 600 Siege Activations . | . . Robots Corrupted . | . . Combat Hostiles . | . . Parts Fried 16 | . 16 Impact Corruptions 11 | . 11 Robots Melted . | . . Combat Hostiles . | . . Parts Melted 1 | . 1 Heat Transferred 450 | 50 400 Parts Sabotaged . | . . Parts Stolen . | . . Parts Stripped . | . . Power Chain Reactions . | . . Missiles Intercepted . | . . Alert | -11 -10 ------- Run | Scr Mat Peak Influence 161 | 5 161 Initial 3 | . 3 Average 44 | 1 46 Maximum Alert Level . | . . Low Security (%) 100 | 100 100 Level 1 . | . . Level 2 . | . . Level 3 . | . . Level 4 . | . . Level 5 . | . . High Security . | . . Max Security . | . . Squads Dispatched 3 | . 3 Investigation 2 | . 2 Extermination . | . . Reinforcement 1 | . 1 Assault . | . . Garrison . | . . Intercept . | . . Construction Impeded . | . . Haulers Reinforced . | . . Stealth | -11 -10 --------- Run | Scr Mat Distress Signals 1 | . 1 Communications Jammed . | . . Distress Signals . | . . Times Spotted 26 | . 26 Peak Tracking Total 5 | . 5 Tactical Retreats 1 | . 1 Traps | -11 -10 ------- Run | Scr Mat Traps Triggered 3 | . 3 Indirectly . | . . Trap Hack Attempts . | . . Triggered . | . . Disarmed . | . . Reprogrammed . | . . Reused . | . . Traps Extracted . | . . Installed . | . . Triggered . | . . Machines | -11 -10 ---------- Run | Scr Mat Machines Disabled . | . . Max in Single Turn . | . . Machines Sabotaged . | . . Garrisons Compromised . | . . Overloaded Fab Kills . | . . Fab Network Shutdowns . | . . Hacking | -11 -10 --------- Run | Scr Mat Machines Accessed 9 | . 9 Terminals 7 | . 7 Fabricators . | . . Repair Stations 1 | . 1 Recycling Units 1 | . 1 Scanalyzers . | . . Garrison Access . | . . Total Hacks 21 | . 21 Successful 9 | . 9 Failed 12 | . 12 Catastrophic 2 | . 2 Database Lockouts . | . . Manual 14 | . 14 Terminals 17 | . 17 Fabricators . | . . Repair Stations 3 | . 3 Recycling Units 1 | . 1 Scanalyzers . | . . Garrison Access . | . . Terminal Hacks 5 | . 5 Robot Analysis 1 | . 1 Prototype ID Bank 3 | . 3 Zone Layout 1 | . 1 Fabricator Hacks . | . . Repair Station Hacks 1 | . 1 Scan Component 1 | . 1 Recycling Unit Hacks . | . . Scanalyzer . | . . Garrison Access Hacks . | . . Unauthorized Hacks 3 | . 3 Terminals 2 | . 2 Track 2 | . 2 Fabricators . | . . Repair Stations . | . . Recycling Units 1 | . 1 Tunnel 1 | . 1 Scanalyzers . | . . Garrison Access . | . . Data Cores Recovered . | . . Used . | . . Hacking Detections 8 | . 8 Full Trace Events . | . . Feedback Events . | . . Feedback Blocked . | . . Robot Schematics Acquired . | . . Robots Built . | . . Matter . | . . Time . | . . Total Robot Build Rating . | . . Part Schematics Acquired . | . . Parts Built . | . . Matter . | . . Time . | . . Total Part Build Rating . | . . Parts Repaired . | . . Time . | . . Parts Recycled . | . . Recycled Matter . | . . Retrieved Matter . | . . Retrieved Components . | . . Parts Scanalyzed . | . . Part Schematics Acquired . | . . Parts Damaged . | . . Bothacking | -11 -10 ------------ Run | Scr Mat Used RIF Installer . | . . Robots Hacked . | . . Non-combat . | . . Combat . | . . Robot Hacks Applied . | . . Relay Couplers Released . | . . Robots Rewired . | . . Allies Hacked . | . . Hacks Repelled . | . . Allies | -11 -10 -------- Run | Scr Mat Total Allies . | . . Largest Group . | . . Highest-Rated Group . | . . Highest-Rated Ally . | . . Total Orders . | . . Ally Attacks . | . . Total Damage . | . . Kills . | . . Allies Corrupted . | . . Allies Melted . | . . Intel | -11 -10 ------- Run | Scr Mat Robot Analysis Total 1 | . 1 Derelict Logs Recovered . | . . Drone Launches . | . . Drone Recoveries . | . . Exploration | -11 -10 ------------- Run | Scr Mat Turns Passed 1456 | 77 1379 Spaces Moved 670 | 39 631 Core 2 | 2 . Treads 668 | 37 631 Legs . | . . Wheels . | . . Hover . | . . Flight . | . . Fastest Speed 50 | 50 160 Average Speed 163 | 154 163 Slowest Speed 180 | 160 180 Overloaded Moves . | . . Propulsion Burnouts . | . . Robots Hopped . | . . Cave-ins Triggered . | . . Exploration Rate (%) 46 | 4 88 Regions Visited 1 Branch Regions . Pre-discovered Areas 1 | . 1 Known Exits Taken . | . . Unknown Exits Taken 1 | 1 . Scrap Searched . | . . Spaces Dug . | . . Terrain Destroyed . | . . Melee . | . . Projectile . | . . AOE . | . . Terrain Rammed . | . . Walls Destroyed . | . . Machines Disabled . | . . Actions | -11 -10 --------- Run | Scr Mat Total 869 | 49 820 Wait 28 | . 28 Move 669 | 38 631 Hop . | . . Pick Up 11 | 2 9 Fast Attach 18 | 7 11 Attach 2 | . 2 Detach 1 | . 1 Swap 5 | . 5 Drop 13 | . 13 Fire 67 | 2 65 Melee 52 | . 52 Ram . | . . Kick . | . . Crush 3 | . 3 Escape Stasis . | . . Rewire . | . . Trap . | . . Miscellaneous . | . . Route ------- -11/Scrapyard -10/Materials (discovered 5 exits: *Mat x3 / [*Min x2]) History --------- Turn | Location | Event 7 | -11/Scrapyard | Discovered new exit (range 14) 78 | -11/Scrapyard | Entered Materials 301 | -10/Materials | Build established: Mutant 467 | -10/Materials | Lost 3 parts (1n2w) 592 | -10/Materials | Discovered new exit (range 12) 592 | -10/Materials | Discovered new exit (range 19) 865 | -10/Materials | Discovered new exit (range 5) 872 | -10/Materials | Identified exit to Materials 1098 | -10/Materials | Discovered new exit (range 16) 1291 | -10/Materials | Discovered exit to Materials (range 14) 1311 | -10/Materials | Core integrity fell below 50% 1442 | -10/Materials | Core integrity fell below 20% 1457 | -10/Materials | Destroyed by G-34 Mercenary with Small Laser Last Messages --------------- 01398_ Dropped Hammer. 01402_ Acquired Hvy. Hammer. 01408_ System corrupted: Heat flow error (+228). 01415_ Triggered Alarm Trap. 01415_ An alarm sounds. 01415_ ALERT: Alarm triggered, dispatching investigation squad. 01419_ Lgt. Armor Plating destroyed. 01423_ Destroyed Heat Sink. 01423_ G-34 Mercenary system corrupted by crushing effect. 01423_ G-34 Mercenary knocked back. 01424_ G-34 Mercenary system terminally corrupted. 01424_ Ion Engine fried. 01424_ Aluminum Leg fried. 01428_ Ion Engine destroyed. 01433_ G-34 Mercenary knocked back. 01454_ Destroyed Aluminum Leg. 01454_ Destroyed Sml. Laser. 01454_ G-34 Mercenary system corrupted by crushing effect. 01455_ G-34 Mercenary system terminally corrupted. 01455_ Heat Sink fried. Map ----- +----------------------------------------------------+ | ### [ #????????# """ #""!"!""# # ## | | ??## ##????????# # "!" " ###### "" | | ???# #################+## ##### # Y" | | ???# ^ % # "" | | ???# ^% % < # ## | | ???# # #? | | ???# ############+####### ##### # #? | | #### #???????# %[ #############???## #### #? | | #???????# """ # ###### ## ## | | < #???????# """ # """"""" + ## | | #???????# """ # """"""" ######### | | ##+######?????# # """"""" #???????# =* | | ## #?????# | # """""""=%#???????# %%% ## | | ## """ #?????######## *""""""" =#?????#####+#### | | |## "T" #?????# ???# = = #?????# *%%%= | | |## #?????# #######+######?????# *%=! | | ## #?????+ !!#?????# ! | | |## #?????# ### !!#?????# | | ||########?????????????# / #?????# | | ! #????????????????????# ///#?????# | | T #????????????????????# !!#?????# | | #???????????????######/## !!#?????# | | ###########??????? g # #####?????#########+ | | # #??????? """" # #?????????????????# | | + """ """ #?????? """" # #?????###########?# | | # """ """ #?????# """" @# #?????# | ! ### | | # """ """ #?????# %+= #?????# # | | # #?????# """" #% #?????# """ ! + | | # #?????# """" # < #?????# """ ! # T | | # #?????# """" # #?????# """ # | | # #???????? #####?????# """ " " #### | | ###########???????########?????????# "Y" #??? | | ##??????????????????????????????????# """ #??? | | ????????????????????????????????????###########??? | | ?????????????????????????????????????????????????? | | ?????????????????????????????????????????????????? | | ?????????????????????????????????????????????????? | | ?????????????????????????????????????????????????? | | ?????????????????????????????????????????????????? | | ?????????????????????????????????????????????????? | | ?????????????????????????????????????????????????? | | | | | | | | | | | | | | | | | | | +----------------------------------------------------+ Best States ------------- Heat Dissipation 25 Energy Generation 14 Energy Capacity 250 Matter Stores 300 Matter Capacity 300 Sight Range 16 Terrain Scan Density 10 Armor Coverage 150 Evasion (%) 40 Targeting Accuracy 12 Recoil Reduction 2 Item Schematics ----------------- None Robot Schematics ------------------ None Fabricated ------------ Nothing Alien Tech Used ----------------- None Achievements -------------- None Challenges ------------ None Game ------ Seed BattlePulseSpear Manual? 0 Play Time 00:10:09 Cumulative 57.3 hours Start 2020.10.23 @ 20:23:53 End 2020.10.23 @ 20:33:31 Sessions 1 Manual Loads 0 Difficulty Rogue Special Mode None Game No. 45 Rogue 45 Adventurer 0 Explorer 0 Win Type - Total 0 Types 0/0/0/0/0/0/0/0/0 Lore% 43 Gallery% 51 Achievement% 44 Wizard Run 0 Options --------- ASCII 0 Keyboard 0 Movement Numpad Keybinds 0 Fullscreen 2 Font 18/SmallcapsGlow Map View 76x50 Tactical HUD 1 Map Filters NONE Filters NONE Steam 1 RUN: 64f98da3-04ae-4fba-943c-41a267b5bf7c